Cogmind - Beta 10.2 @@@ ROGUE MODE // 2021.02.22 @ 13:08:59 Player: gammafunk Result: Self-destructed Performance ------------- Evolutions (8) 4000 Regions Visited (18) 3600 Robots Destroyed (245) 1225 Value Destroyed (10284) 10284 Prototype IDs (29) 580 Alien Tech Used (2) 400 Bonus (3246) 3246 TOTAL SCORE: 23335 Bonus ------- High Alert Combat Kills 499 Follower Combat Kills 1692 Built Enhanced Grunts 300 A7 Reached Mainframe 300 Met R17 at Cetus 500 Friendly Fire -45 Cogmind --------- Core Integrity 512/1450 Matter 79/300 Energy 100/100 System Corruption 80% Temperature Cool (0) Movement Treading (160) Location -2/Research Parts ------- > --- POWER (2) -------- (None) > --- PROPULSION (4) --- Centrium Heavy Treads > --- UTILITY (13) ----- High-capacity Storage Unit > --- WEAPON (4) ------- (None) > --- INVENTORY (12) --- Micro Fission Core Micro Fission Core Particle Reactor Centrium Heavy Treads Long-range Proton Cannon Micro-nuke Launcher Power Maul Peak State ------------ > --- POWER ------------ Enhanced Fission Core Light Quantum Reactor > --- PROPULSION ------- Centrium Heavy Treads Centrium Heavy Treads > --- UTILITY ---------- Advanced Cooling System Advanced Cooling System High-capacity Storage Unit High-capacity Storage Unit Advanced Energy Well Advanced Terrain Scan Processor Advanced Core Analyzer Improved Kinecellerator Experimental Utility Shielding Centrium Medium Armor Plating Centrium Medium Armor Plating Advanced Focal Shield Improved Force Field > --- WEAPON ----------- Improved KE Penetrator Improved KE Penetrator Hypervelocity Railgun Heavy Gauss Cannon > --- INVENTORY -------- Micro Fission Core Antimatter Reactor Particle Reactor Quantum Reactor Centrium Heavy Treads Centrium Heavy Treads Matter Compressor Improved Terrain Scanner Advanced Targeting Computer Heavy Armor Plating Recalibrator Phase Gun Long-range Proton Cannon Mini Assault Cannon Hardcell Cannon Micro-nuke Launcher Power Maul [Rating: 173] Favorites ----------- Power Enhanced Fission Core Engine Reinforced Deuterium Engine Power Core Enhanced Fission Core Reactor Quantum Reactor Propulsion Centrium Heavy Treads Treads Centrium Heavy Treads Utility High-capacity Storage Unit Device Advanced Cooling System Storage High-capacity Storage Unit Processor Advanced Terrain Scan Processor Hackware System Shield Protection Centrium Medium Armor Plating Weapon Improved KE Penetrator Energy Gun Cooled Pulse Rifle Energy Cannon Heavy Ion Cannon Ballistic Gun Improved KE Penetrator Ballistic Cannon Mini Assault Cannon Launcher Proton Missile Launcher Impact Weapon Power Maul Build | -11 -10 -10 -9 -9 -8 -7 -7 -6 -6 -6 -5 -4 -4 -4 -4 -3 -3 -2 ------- Run | Scr Mat Min Mat Min Mat Fac Sto Fac Ext Cet Fac Fac Upp Upp Zhi Pro Res Res Slots Evolved 16 | . . . 2 . 2 2 . 2 . . 2 2 . . . . 2 2 Power 1 | . . . . . . 1 . . . . . . . . . . . . Propulsion 2 | . . . 1 . . . . 1 . . . . . . . . . . Utility 11 | . . . 1 . 2 . . 1 . . 2 1 . . . . 2 2 Weapon 2 | . . . . . . 1 . . . . . 1 . . . . . . Parts Attached 316 | 6 10 . 26 8 16 31 37 19 34 11 22 9 9 3 6 8 6 55 Power 27 | 1 . . 2 . 2 4 4 2 3 . 1 1 . . . . . 7 Engine 18 | 1 . . 2 . 2 4 4 2 3 . . . . . . . . . Core 1 | . . . . . . . . . . . . 1 . . . . . . Reactor 8 | . . . . . . . . . . . 1 . . . . . . 7 Propulsion 40 | 2 1 . 7 1 4 3 2 5 9 2 . . 1 . . . . 3 Treads 40 | 2 1 . 7 1 4 3 2 5 9 2 . . 1 . . . . 3 Leg . | . . . . . . . . . . . . . . . . . . . Wheel . | . . . . . . . . . . . . . . . . . . . Hover . | . . . . . . . . . . . . . . . . . . . Flight . | . . . . . . . . . . . . . . . . . . . Utility 118 | 1 3 . 2 . 9 10 17 4 10 2 12 7 8 3 4 5 5 16 Device 84 | . 1 . . . 2 7 16 3 6 1 11 6 7 2 2 5 4 11 Storage 7 | 1 1 . 2 . 1 . . . . . . . . 1 1 . . . Processor 9 | . 1 . . . 2 2 . . . . 1 . . . . . . 3 Hackware 1 | . . . . . 1 . . . . . . . . . . . . . Protection 17 | . . . . . 3 1 1 1 4 1 . 1 1 . 1 . 1 2 Artifact . | . . . . . . . . . . . . . . . . . . . Weapon 131 | 2 6 . 15 7 1 14 14 8 12 7 9 1 . . 2 3 1 29 Energy Gun 43 | . 5 . 8 1 . 2 6 3 4 . 1 . . . . . . 13 Energy Cannon 6 | . . . 1 1 . 1 1 . . . 1 . . . 1 . . . Ballistic Gun 40 | 2 . . 4 2 1 8 3 2 . 4 2 1 . . 1 1 1 8 Ballistic Cannon 15 | . . . . . . . 1 2 4 1 3 . . . . 1 . 3 Launcher 17 | . 1 . 2 3 . 3 3 1 . 1 2 . . . . . . 1 Special Weapon . | . . . . . . . . . . . . . . . . . . . Impact Weapon 10 | . . . . . . . . . 4 1 . . . . . 1 . 4 Slashing Weapon . | . . . . . . . . . . . . . . . . . . . Piercing Weapon . | . . . . . . . . . . . . . . . . . . . Special Melee Weapon . | . . . . . . . . . . . . . . . . . . . Unidentified Prototypes 21 | . . . 2 . . 3 4 . . 3 2 1 . . 4 . . 2 Parts Lost 53 | . . . 1 . . 2 1 3 7 . . 1 1 . . 1 . 36 Power 7 | . . . 1 . . . 1 . . . . . . . . . . 5 Propulsion 8 | . . . . . . 2 . 1 2 . . . . . . . . 3 Utility 23 | . . . . . . . . 1 3 . . 1 1 . . . . 17 Weapon 15 | . . . . . . . . 1 2 . . . . . . 1 . 11 Highest Loss Streak 17 | . . . 1 . . 1 1 1 2 . . 1 1 . . 1 . 17 Average Slot Usage (%) 93 | . 98 100 99 100 100 99 99 99 97 87 87 88 88 88 88 89 90 86 Engine 7 | . 14 14 10 11 9 15 14 13 13 13 10 . . . . . . . Core 1 | . . . . . . . . . . . . 4 5 5 5 5 4 2 Reactor 2 | . . . . . . . . . . . . 5 5 5 5 5 4 5 Treads 18 | . 28 28 33 33 27 22 23 25 25 14 11 10 10 10 10 10 9 7 Device 12 | . 3 . . . 9 10 5 11 7 13 22 23 24 21 15 15 19 19 Storage 14 | . 14 14 22 22 18 15 15 13 13 13 11 10 6 9 14 15 14 12 Processor 8 | . 9 14 11 11 9 10 15 13 10 6 5 5 5 5 5 5 4 11 Protection 5 | . . . . . 6 . 1 1 4 6 5 7 10 10 10 10 14 7 Energy Gun 4 | . 24 28 18 . . . 9 6 1 . . . . . . . . 4 Ballistic Gun 9 | . 3 . 3 20 18 18 5 . . 10 10 15 15 15 15 17 14 10 Ballistic Cannon 5 | . . . . . . . 2 11 17 8 4 5 5 5 4 3 4 . Naked Turns . | . . . . . . . . . . . . . . . . . . . Heaviest Build 169 | 11 27 25 59 62 81 102 101 113 121 119 131 154 154 154 154 150 161 169 Greatest Support 170 | 40 40 40 60 60 68 74 74 102 94 160 160 160 160 160 160 160 160 170 Greatest Overweight (x) 1 | . . . . 1 1 1 1 1 1 1 . . 1 . . . 1 1 Average Overweight (x) . | . . . . . . 1 1 . 1 . . . . . . . . . Largest Inventory Capacity 20 | 6 12 10 18 18 20 20 20 20 20 20 20 20 20 20 20 20 20 20 Average Capacity 18 | 4 9 10 16 18 18 20 20 20 20 20 20 20 15 18 20 20 20 19 Most Carried 20 | 4 10 10 18 18 20 20 20 20 20 20 20 20 20 12 17 18 20 20 Average Carried 17 | 2 9 9 15 17 18 19 19 19 19 19 19 19 14 11 14 17 18 18 Final Capacity 20 | 6 10 10 18 18 20 20 20 20 20 20 20 20 12 20 20 20 20 12 Final Carried 20 | 4 10 10 18 18 20 20 20 20 20 20 20 20 11 12 17 17 20 8 Class Distribution -------------------- 25% | Scavenger-Skirmisher 20% | Scavenger-Tank 16% | Mutant 14% | Hauler-Gunner 8% | Hauler-Skirmisher 4% | Hauler-Mutant 3% | Hauler-Tank Dominant Class ---------------- Mutant | -10/Materials Mutant | -10/Mines Mutant | -9/Materials Mutant | -9/Mines Mutant | -8/Materials Hauler-Gunner | -7/Factory Commander-Mutant | -7/Storage Hauler-Skirmisher | -6/Factory Hauler-Gunner | -6/Extension Scavenger-Tank | -6/Cetus Scavenger-Skirmisher | -5/Factory Scavenger-Tank | -4/Factory Scavenger-Tank | -4/Upper Caves Scavenger-Tank | -4/Upper Caves Scavenger-Skirmisher | -4/Zhirov Scavenger-Tank | -3/Proximity Caves Scavenger-Tank | -3/Research Scavenger-Tank | -2/Research Resources | -11 -10 -10 -9 -9 -8 -7 -7 -6 -6 -6 -5 -4 -4 -4 -4 -3 -3 -2 ----------- Run | Scr Mat Min Mat Min Mat Fac Sto Fac Ext Cet Fac Fac Upp Upp Zhi Pro Res Res Matter Collected 9514 | 152 228 . 336 196 591 820 664 469 1475 376 517 296 823 182 98 255 264 1772 Remotely . | . . . . . . . . . . . . . . . . . . . Salvage Created 11826 | . 535 . 1387 224 357 834 1558 353 868 228 285 319 605 127 416 374 469 2887 Parts 573 | . 40 . 84 10 21 48 76 21 29 10 15 6 17 7 5 18 26 140 Haulers Intercepted 10 | . 2 . 3 . . 1 4 . . . . . . . . . . . Recyclers Shooed 6 | . . . 4 . . . . . . . . . . . . . . 2 Parts Field Recycled . | . . . . . . . . . . . . . . . . . . . Retrieved Matter . | . . . . . . . . . . . . . . . . . . . Parts Self-Destructed 49 | . . . . . . . . . . . . . 26 1 . 22 . . Prevented 9 | . . . . . . . . . . . . . . 7 2 . . . Kills | -11 -10 -10 -9 -9 -8 -7 -7 -6 -6 -6 -5 -4 -4 -4 -4 -3 -3 -2 ------- Run | Scr Mat Min Mat Min Mat Fac Sto Fac Ext Cet Fac Fac Upp Upp Zhi Pro Res Res Combat Hostiles Destroyed 183 | . 9 . 23 8 6 13 19 8 18 7 5 3 10 5 . 7 7 35 Guns 105 | . 5 . 19 2 6 6 6 . 3 4 1 1 9 5 . 6 6 26 Cannons 40 | . . . . . . 1 . 8 15 3 4 2 1 . . 1 1 4 AOE 29 | . 4 . 4 5 . 6 6 . . . . . . . . . . 4 Classes Destroyed 16 | . 8 . 1 2 1 1 . . 2 . 1 . . . . . . . Worker 11 | . 1 . 2 . . 3 4 . . . . . . . . . . 1 Builder 7 | . 1 . 1 . 1 . 1 . 1 . 1 . . . . . . 1 Tunneler 3 | . 1 . . 1 . . 1 . . . . . . . . . . . Hauler 10 | . 2 . 3 . . 1 4 . . . . . . . . . . . Recycler 13 | . 1 . 4 . . . 3 . 2 . . 1 . . . . . 2 Operator 2 | . . . . . . . . . 1 . . . . . . . . 1 Watcher 16 | . 2 . 5 . 1 1 1 1 2 . 1 . . . . . . 2 Swarmer 37 | . 3 . 9 4 . . 4 . . 4 . 1 4 5 . 3 . . Grunt 74 | . 6 . 11 2 3 4 12 2 10 . 1 . 5 . . 2 4 12 Brawler 3 | . . . . 1 . . . 1 1 . . . . . . . . . Duelist 3 | . . . . 1 . . . 1 . . . . . . . . . 1 Protector 1 | . . . . . . . . . . . 1 . . . . . . . Sentry 26 | . . . 3 . 2 4 2 2 4 . 2 2 1 . . . 1 3 Hunter 9 | . . . . . 1 2 . . 1 . . . . . . 1 . 4 Programmer 25 | . . . . . . 3 1 2 . 1 1 . . . . 1 2 14 Behemoth 3 | . . . . . . . . . 2 . . . . . . . . 1 Cetus Guard 2 | . . . . . . . . . . 2 . . . . . . . . Packrat 1 | . . . . . . . . . . . . . 1 . . . . . Best Kill Streak 9 | . 6 . 6 4 4 8 6 1 4 3 3 2 4 5 . 3 4 9 Combat Bots Only 7 | . 3 . 5 4 3 6 4 1 4 3 2 1 4 5 . 3 4 7 Max Kills in Single Turn 3 | . 2 . 2 2 1 3 2 1 1 1 2 1 1 1 . 1 1 2 Gunslinging 1 | . . . 1 . . . . . . . . . . . . . . 1 Exploded 2 | . 2 . 2 2 . 1 1 . . . . . . . . . . 1 Melee . | . . . . . . . . . . . . . . . . . . . Uniques/NPCs Destroyed . | . . . . . . . . . . . . . . . . . . . Combat | -11 -10 -10 -9 -9 -8 -7 -7 -6 -6 -6 -5 -4 -4 -4 -4 -3 -3 -2 -------- Run | Scr Mat Min Mat Min Mat Fac Sto Fac Ext Cet Fac Fac Upp Upp Zhi Pro Res Res Damage Taken 16626 | . 139 . 734 74 495 1072 1057 469 2607 163 313 183 753 392 . 489 193 7493 Core 1758 | . 19 . 89 . 80 75 177 18 182 6 . 28 59 46 . 41 . 938 Absorbed by Shields 3378 | . . . . . . 180 . . 263 167 52 96 423 145 . 387 200 1465 Core Remaining (%) 85 | 100 . 92 . 77 85 . 64 . . 75 100 . . . . 77 100 . Volleys Fired 565 | . 19 . 63 24 27 38 52 26 66 16 23 8 24 10 18 12 10 129 Largest 4 | . 2 . 2 2 2 3 3 3 3 3 3 4 4 4 1 4 4 4 Hottest 263 | . 110 . 100 73 46 121 139 181 149 144 164 153 153 153 81 153 153 263 Shots Fired 1456 | . 36 . 123 35 54 96 84 74 189 48 67 32 96 40 18 47 40 377 Gun 978 | . 34 . 120 22 54 73 46 24 24 26 43 24 72 30 . 42 30 314 Cannon 412 | . . . . . . 14 6 48 165 22 23 8 24 10 18 5 10 59 Launcher 66 | . 2 . 3 13 . 9 32 2 . . 1 . . . . . . 4 Special . | . . . . . . . . . . . . . . . . . . . Kinetic 1027 | . . . 15 18 54 62 26 48 165 48 65 32 96 40 . 47 40 271 Thermal 162 | . 1 . . . . 19 22 24 24 . . . . . . . . 72 Explosive 13 | . 2 . 3 3 . 1 . . . . . . . . . . . 4 Electromagnetic 254 | . 33 . 105 14 . 14 36 2 . . 2 . . . 18 . . 30 Robot Hit Streak 56 | . 6 . 13 26 23 22 12 22 29 7 8 11 10 5 11 17 16 56 Robot Miss Streak 6 | . 3 . 3 2 2 4 5 2 4 3 4 3 6 2 1 3 1 6 Penetration Max 1 | . . . . . . . . . . 1 . 1 1 . . 1 . 1 Secondary Targets 15 | . . . 4 1 . . 2 . . . . . . . . . . 8 Max Gunslinging Chain 2 | . . . 1 1 . . 1 . . . . . . . . . . 2 Shots Hit Robots 1007 | . 20 . 74 31 46 73 54 56 140 27 45 24 52 21 16 30 29 269 Core Hits 482 | . 21 . 42 12 19 48 60 22 54 9 17 8 19 5 4 13 14 115 Critical Hits 87 | . . . 1 . . . . 2 7 4 7 5 9 1 . 4 3 44 Critical Kills 25 | . . . . . . . . 1 4 1 2 1 3 . . 4 1 8 Critical Parts Destroyed 44 | . . . 1 . . . . 1 3 3 3 3 6 1 . . 2 21 Melee Attacks 29 | . . . . . . . . . 14 2 . . . . . 2 . 11 Impact 29 | . . . . . . . . . 14 2 . . . . . 2 . 11 Slashing . | . . . . . . . . . . . . . . . . . . . Piercing . | . . . . . . . . . . . . . . . . . . . Sneak Attacks . | . . . . . . . . . . . . . . . . . . . Combat Hostiles . | . . . . . . . . . . . . . . . . . . . Follow-up Attacks . | . . . . . . . . . . . . . . . . . . . Damage Inflicted 28139 | . 648 . 1785 1128 624 1814 2177 1286 3679 849 1448 715 1486 325 455 825 892 8003 Guns 15426 | . 402 . 1322 293 624 915 522 448 436 527 868 560 1238 294 . 794 792 5391 Cannons 7488 | . . . . . . 348 55 837 3195 322 478 155 248 31 455 31 100 1233 Explosions 5177 | . 246 . 463 835 . 551 1600 1 . . 102 . . . . . . 1379 Melee . | . . . . . . . . . . . . . . . . . . . Ramming 48 | . . . . . . . . . 48 . . . . . . . . . Kinetic 17176 | . . . 160 224 624 752 255 837 3195 849 1310 715 1486 325 . 825 892 4727 Thermal 3983 | . 53 . 239 229 . 582 471 448 436 . . . . . . . . 1525 Explosive 2205 | . 193 . 224 437 . 97 . . . . . . . . . . . 1254 Electromagnetic 4727 | . 402 . 1162 238 . 383 1451 1 . . 138 . . . 455 . . 497 Impact . | . . . . . . . . . . . . . . . . . . . Slashing . | . . . . . . . . . . . . . . . . . . . Piercing . | . . . . . . . . . . . . . . . . . . . Highest Corruption 78 | . . . . . . 2 3 1 1 1 . . . . . . 1 78 Average Corruption 5 | . . . . . . 1 2 1 1 1 . . . . . . 1 21 Corruption Purged . | . . . . . . . . . . . . . . . . . . . Effects 240 | . . . . . . 6 24 1 10 4 . . . . . . 1 194 Message Errors 41 | . . . . . . 1 13 1 6 3 . . . . . . . 17 Matter Fused 15 | . . . . . . . 1 . . . . . . . . . . 14 Heat Flow Errors 13 | . . . . . . 1 1 . . . . . . . . . . 11 Energy Discharges 20 | . . . . . . 1 1 . 1 1 . . . . . . 1 15 Parts Rejected 1 | . . . . . . . . . . . . . . . . . . 1 Data Loss (minor) 15 | . . . . . . 1 4 . 1 . . . . . . . . 9 Data Loss (major) 3 | . . . . . . . . . . . . . . . . . . 3 Misfires 3 | . . . . . . . . . . . . . . . . . . 3 Misdirections 18 | . . . . . . . . . . . . . . . . . . 18 Targeting Errors 90 | . . . . . . 2 4 . 2 . . . . . . . . 82 Weapon Failures 21 | . . . . . . . . . . . . . . . . . . 21 Overload Shots . | . . . . . . . . . . . . . . . . . . . Overflow Damage 392 | . . . 11 58 . 23 41 21 21 13 . . 12 . 81 . . 111 Projectiles 165 | . . . . . . . . 21 21 13 . . 12 . 81 . . 17 Explosions 227 | . . . 11 58 . 23 41 . . . . . . . . . . 94 Melee . | . . . . . . . . . . . . . . . . . . . Knockbacks 50 | . . . . . . . . 9 24 1 3 . 2 . . . 1 10 Impact . | . . . . . . . . . . . . . . . . . . . Kinetic 48 | . . . . . . . . 9 24 1 2 . 1 . . . 1 10 Secondary 2 | . . . . . . . . . . . 1 . 1 . . . . . Self-Inflicted Damage 260 | . . . 31 . . 58 85 . . . . . . . . . . 86 Shots 7 | . . . 1 . . 1 4 . . . . . . . . . . 1 Rammed 1 | . . . . . . . . . 1 . . . . . . . . . Targets Rammed 2 | . . . . . . . . . 2 . . . . . . . . . Kicked . | . . . . . . . . . . . . . . . . . . . Crushed 1 | . . . . . . . . . 1 . . . . . . . . . Highest Temperature 582 | . 108 . 204 30 14 264 341 260 582 66 48 10 27 6 . . 8 328 Average Temperature 70 | . 37 . 54 15 4 106 100 51 113 11 8 4 6 3 . . 3 82 Received Heat Transfer 2657 | . 60 . 207 18 207 252 318 126 612 . 72 8 71 . . 8 28 670 Effects 24 | . . . . . . 1 . . 20 . . . . . . . . 3 Shutdowns 4 | . . . . . . . . . 4 . . . . . . . . . Energy Bleed 4 | . . . . . . 1 . . 2 . . . . . . . . 1 Interference 5 | . . . . . . . . . 3 . . . . . . . . 2 Matter Decay 1 | . . . . . . . . . 1 . . . . . . . . . Damage (minor) 5 | . . . . . . . . . 5 . . . . . . . . . Damage (major) 5 | . . . . . . . . . 5 . . . . . . . . . Siege Activations . | . . . . . . . . . . . . . . . . . . . Robots Corrupted 10 | . . . . 1 . . 7 . . . . . . . 1 . . 1 Combat Hostiles 10 | . . . . 1 . . 7 . . . . . . . 1 . . 1 Parts Fried 21 | . 4 . 3 . . . 9 . . 1 . . . . 1 . . 3 Impact Corruptions 1 | . . . . . . . . . . . . . 1 . . . . . Robots Melted . | . . . . . . . . . . . . . . . . . . . Combat Hostiles . | . . . . . . . . . . . . . . . . . . . Parts Melted 6 | . . . 1 . . . . 1 . . . . . . . . . 4 Heat Transferred 5490 | . . . 300 300 . 729 781 814 851 . . . . . . . . 1715 Parts Sabotaged . | . . . . . . . . . . . . . . . . . . . Parts Stolen . | . . . . . . . . . . . . . . . . . . . Parts Stripped . | . . . . . . . . . . . . . . . . . . . Power Chain Reactions 15 | . 1 . 5 1 . 2 5 . . . . . . . . . . 1 Missiles Intercepted . | . . . . . . . . . . . . . . . . . . . Alert | -11 -10 -10 -9 -9 -8 -7 -7 -6 -6 -6 -5 -4 -4 -4 -4 -3 -3 -2 ------- Run | Scr Mat Min Mat Min Mat Fac Sto Fac Ext Cet Fac Fac Upp Upp Zhi Pro Res Res Peak Influence 983 | . 316 84 473 279 262 319 438 183 244 689 983 577 . . . . 174 494 Initial 479 | . . 84 . 134 67 86 114 147 50 136 385 479 . . . . 77 51 Average 204 | . 145 50 241 205 120 139 220 75 74 341 741 496 . . . . 92 258 Maximum Alert Level 3 | . 1 . 2 1 1 1 2 . 1 2 3 2 . . . . . 2 Low Security (%) 62 | 100 60 100 39 56 88 73 50 100 90 7 . . . . . . 100 39 Level 1 21 | . 39 . 38 43 11 26 38 . 9 71 3 9 . . . . . 27 Level 2 13 | . . . 22 . . . 11 . . 20 43 90 . . . . . 33 Level 3 3 | . . . . . . . . . . . 52 . . . . . . . Level 4 . | . . . . . . . . . . . . . . . . . . . Level 5 . | . . . . . . . . . . . . . . . . . . . High Security . | . . . . . . . . . . . . . . . . . . . Max Security . | . . . . . . . . . . . . . . . . . . . Squads Dispatched 39 | . 1 . 3 . 1 7 7 4 1 . 2 1 . . . . 3 9 Investigation 4 | . . . 1 . . 1 . . . . . . . . . . 1 1 Extermination 16 | . . . . . . 3 2 2 . . 1 1 . . . . 1 6 Reinforcement 17 | . 1 . 2 . 1 3 5 2 1 . . . . . . . 1 1 Assault 2 | . . . . . . . . . . . 1 . . . . . . 1 Garrison . | . . . . . . . . . . . . . . . . . . . Intercept . | . . . . . . . . . . . . . . . . . . . Construction Impeded 2 | . . . . . . . 1 1 . . . . . . . . . . Haulers Reinforced 2 | . . . . . . . 2 . . . . . . . . . . . Stealth | -11 -10 -10 -9 -9 -8 -7 -7 -6 -6 -6 -5 -4 -4 -4 -4 -3 -3 -2 --------- Run | Scr Mat Min Mat Min Mat Fac Sto Fac Ext Cet Fac Fac Upp Upp Zhi Pro Res Res Distress Signals 12 | . 2 . . . . . 5 1 2 2 . . . . . . . . Communications Jammed . | . . . . . . . . . . . . . . . . . . . Distress Signals . | . . . . . . . . . . . . . . . . . . . Times Spotted 297 | . 16 . 35 6 11 16 26 15 39 18 17 10 11 6 . 11 9 51 Peak Tracking Total 7 | . 3 . 4 2 3 5 6 3 5 5 5 4 4 5 . 4 4 7 Tactical Retreats 28 | . . . . . 1 1 1 1 8 . . 3 1 1 . 4 . 7 Traps | -11 -10 -10 -9 -9 -8 -7 -7 -6 -6 -6 -5 -4 -4 -4 -4 -3 -3 -2 ------- Run | Scr Mat Min Mat Min Mat Fac Sto Fac Ext Cet Fac Fac Upp Upp Zhi Pro Res Res Traps Triggered 12 | . . . 1 . . . . 2 5 . 1 . . . . . 1 2 Indirectly 1 | . . . . . . . . 1 . . . . . . . . . . Trap Hack Attempts . | . . . . . . . . . . . . . . . . . . . Triggered . | . . . . . . . . . . . . . . . . . . . Disarmed . | . . . . . . . . . . . . . . . . . . . Reprogrammed . | . . . . . . . . . . . . . . . . . . . Reused . | . . . . . . . . . . . . . . . . . . . Traps Extracted . | . . . . . . . . . . . . . . . . . . . Installed . | . . . . . . . . . . . . . . . . . . . Triggered 5 | . . . . . . . 1 . . . . . . 3 . 1 . . Machines | -11 -10 -10 -9 -9 -8 -7 -7 -6 -6 -6 -5 -4 -4 -4 -4 -3 -3 -2 ---------- Run | Scr Mat Min Mat Min Mat Fac Sto Fac Ext Cet Fac Fac Upp Upp Zhi Pro Res Res Machines Disabled 28 | . 3 . 1 3 2 4 2 1 1 3 2 2 . . 2 . . 2 Max in Single Turn 2 | . 1 . 1 2 1 2 1 1 1 1 1 1 . . 1 . . 1 Garrison Access 1 | . . . . . . . . . . . . . . . . . . 1 Machines Sabotaged . | . . . . . . . . . . . . . . . . . . . Garrisons Compromised . | . . . . . . . . . . . . . . . . . . . Overloaded Fab Kills . | . . . . . . . . . . . . . . . . . . . Fab Network Shutdowns . | . . . . . . . . . . . . . . . . . . . Hacking | -11 -10 -10 -9 -9 -8 -7 -7 -6 -6 -6 -5 -4 -4 -4 -4 -3 -3 -2 --------- Run | Scr Mat Min Mat Min Mat Fac Sto Fac Ext Cet Fac Fac Upp Upp Zhi Pro Res Res Machines Accessed 54 | . 4 1 5 1 3 1 7 3 9 2 3 . . 1 9 . 1 4 Terminals 40 | . 4 . 4 1 3 1 6 3 8 2 3 . . . . . 1 4 Fabricators . | . . . . . . . . . . . . . . . . . . . Repair Stations 3 | . . . 1 . . . 1 . 1 . . . . . . . . . Recycling Units . | . . . . . . . . . . . . . . . . . . . Scanalyzers . | . . . . . . . . . . . . . . . . . . . Garrison Access . | . . . . . . . . . . . . . . . . . . . Total Hacks 164 | . 16 1 13 1 15 3 18 5 22 4 8 . . 1 48 . 1 8 Successful 93 | . 7 1 7 . 7 1 10 3 4 1 3 . . 1 48 . . . Failed 71 | . 9 . 6 1 8 2 8 2 18 3 5 . . . . . 1 8 Catastrophic 16 | . 1 . . . 3 . . 1 3 1 2 . . . . . 1 4 Database Lockouts . | . . . . . . . . . . . . . . . . . . . Manual 72 | . 14 . 8 . 11 3 6 1 10 3 5 . . . 2 . 1 8 Terminals 106 | . 16 . 9 1 15 3 16 5 20 4 8 . . . . . 1 8 Fabricators . | . . . . . . . . . . . . . . . . . . . Repair Stations 8 | . . . 4 . . . 2 . 2 . . . . . . . . . Recycling Units . | . . . . . . . . . . . . . . . . . . . Scanalyzers . | . . . . . . . . . . . . . . . . . . . Garrison Access . | . . . . . . . . . . . . . . . . . . . Terminal Hacks 72 | . 4 1 1 . 4 . 8 2 1 1 1 . . 1 48 . . . Record 40 | . . . . . . . 2 . . 1 . . . 1 36 . . . Part Schematic 5 | . 1 . . . . . . . . . . . . . 4 . . . Robot Analysis 4 | . . . . . . . . . . . . . . . 4 . . . Prototype ID Bank 4 | . . . . . . . . . . . . . . . 4 . . . Open Door 4 | . . 1 . . . . 1 1 1 . . . . . . . . . Level Access Points 1 | . . . . . . . . 1 . . . . . . . . . . Branch Access Points 3 | . 1 . 1 . 1 . . . . . . . . . . . . . Terminal Index 4 | . 1 . . . 1 . 1 . . . 1 . . . . . . . Alert Level 1 | . . . . . . . 1 . . . . . . . . . . . Unreport Threat 1 | . . . . . . . 1 . . . . . . . . . . . Locate Traps 2 | . . . . . 1 . 1 . . . . . . . . . . . Hauler Manifests 3 | . 1 . . . 1 . 1 . . . . . . . . . . . Fabricator Hacks . | . . . . . . . . . . . . . . . . . . . Repair Station Hacks 6 | . . . 4 . . . . . 2 . . . . . . . . . Scan Component 3 | . . . 2 . . . . . 1 . . . . . . . . . Repair 3 | . . . 2 . . . . . 1 . . . . . . . . . Recycling Unit Hacks . | . . . . . . . . . . . . . . . . . . . Scanalyzer . | . . . . . . . . . . . . . . . . . . . Garrison Access Hacks . | . . . . . . . . . . . . . . . . . . . Unauthorized Hacks 15 | . 3 . 2 . 3 1 2 1 1 . 2 . . . . . . . Terminals 15 | . 3 . 2 . 3 1 2 1 1 . 2 . . . . . . . Botnet 15 | . 3 . 2 . 3 1 2 1 1 . 2 . . . . . . . Fabricators . | . . . . . . . . . . . . . . . . . . . Repair Stations . | . . . . . . . . . . . . . . . . . . . Recycling Units . | . . . . . . . . . . . . . . . . . . . Scanalyzers . | . . . . . . . . . . . . . . . . . . . Garrison Access . | . . . . . . . . . . . . . . . . . . . Data Cores Recovered . | . . . . . . . . . . . . . . . . . . . Used . | . . . . . . . . . . . . . . . . . . . Hacking Detections 42 | . 4 . 5 1 3 1 7 2 9 2 3 . . . . . 1 4 Full Trace Events . | . . . . . . . . . . . . . . . . . . . Feedback Events . | . . . . . . . . . . . . . . . . . . . Feedback Blocked . | . . . . . . . . . . . . . . . . . . . Robot Schematics Acquired . | . . . . . . . . . . . . . . . . . . . Robots Built . | . . . . . . . . . . . . . . . . . . . Matter . | . . . . . . . . . . . . . . . . . . . Time . | . . . . . . . . . . . . . . . . . . . Total Robot Build Rating . | . . . . . . . . . . . . . . . . . . . Part Schematics Acquired 5 | . 1 . . . . . . . . . . . . . 4 . . . Parts Built . | . . . . . . . . . . . . . . . . . . . Matter . | . . . . . . . . . . . . . . . . . . . Time . | . . . . . . . . . . . . . . . . . . . Total Part Build Rating . | . . . . . . . . . . . . . . . . . . . Parts Repaired 3 | . . . 2 . . . . . 1 . . . . . . . . . Time 105 | . . . 83 . . . . . 22 . . . . . . . . . Parts Recycled . | . . . . . . . . . . . . . . . . . . . Recycled Matter . | . . . . . . . . . . . . . . . . . . . Retrieved Matter . | . . . . . . . . . . . . . . . . . . . Retrieved Components . | . . . . . . . . . . . . . . . . . . . Parts Scanalyzed . | . . . . . . . . . . . . . . . . . . . Part Schematics Acquired . | . . . . . . . . . . . . . . . . . . . Parts Damaged . | . . . . . . . . . . . . . . . . . . . Bothacking | -11 -10 -10 -9 -9 -8 -7 -7 -6 -6 -6 -5 -4 -4 -4 -4 -3 -3 -2 ------------ Run | Scr Mat Min Mat Min Mat Fac Sto Fac Ext Cet Fac Fac Upp Upp Zhi Pro Res Res Used RIF Installer . | . . . . . . . . . . . . . . . . . . . Robots Hacked . | . . . . . . . . . . . . . . . . . . . Non-combat . | . . . . . . . . . . . . . . . . . . . Combat . | . . . . . . . . . . . . . . . . . . . Robot Hacks Applied . | . . . . . . . . . . . . . . . . . . . Relay Couplers Released 2 | . . . . . . . . . . . . . . . . . . 2 Machine Destruction 2 | . . . . . . . . . . . . . . . . . . 2 Robots Rewired 13 | . . . . . . . . . 13 . . . . . . . . . Allies Hacked . | . . . . . . . . . . . . . . . . . . . Hacks Repelled . | . . . . . . . . . . . . . . . . . . . Allies | -11 -10 -10 -9 -9 -8 -7 -7 -6 -6 -6 -5 -4 -4 -4 -4 -3 -3 -2 -------- Run | Scr Mat Min Mat Min Mat Fac Sto Fac Ext Cet Fac Fac Upp Upp Zhi Pro Res Res Total Allies 37 | . . 4 . . . . 10 . 18 5 . . . . . . . . Largest Group 10 | . . 3 3 . . . 10 6 7 7 6 2 . . . . . . Highest-Rated Group 638 | . . 40 40 . . . 173 109 314 638 603 167 . . . . . . Highest-Rated Ally 156 | . . 31 16 . . . 29 29 156 156 133 94 . . . . . . Total Orders 6 | . . . . . . 1 1 . . 3 . 1 . . . . . . STAY 1 | . . . . . . . . . . . . 1 . . . . . . ROAM 2 | . . . . . . . . . . 2 . . . . . . . . FOLLOW 1 | . . . . . . . . . . 1 . . . . . . . . EXPLORE 2 | . . . . . . 1 1 . . . . . . . . . . . Ally Attacks 309 | . . . 4 . . . 43 37 53 108 61 3 . . . . . . Total Damage 8008 | . . . 47 . . . 608 531 1014 3236 2527 45 . . . . . . Kills 42 | . . . 1 . . . 6 3 4 16 11 1 . . . . . . Allies Corrupted . | . . . . . . . . . . . . . . . . . . . Allies Melted . | . . . . . . . . . . . . . . . . . . . Intel | -11 -10 -10 -9 -9 -8 -7 -7 -6 -6 -6 -5 -4 -4 -4 -4 -3 -3 -2 ------- Run | Scr Mat Min Mat Min Mat Fac Sto Fac Ext Cet Fac Fac Upp Upp Zhi Pro Res Res Robot Analysis Total 4 | . . . . . . . . . . . . . . . 4 . . . Derelict Logs Recovered 5 | . . 1 . 1 . . . . . . . . 2 1 . . . . Drone Launches 20 | . . . . . . 4 16 . . . . . . . . . . . Drone Recoveries . | . . . . . . . . . . . . . . . . . . . Exploration | -11 -10 -10 -9 -9 -8 -7 -7 -6 -6 -6 -5 -4 -4 -4 -4 -3 -3 -2 ------------- Run | Scr Mat Min Mat Min Mat Fac Sto Fac Ext Cet Fac Fac Upp Upp Zhi Pro Res Res Turns Passed 24478 | 73 681 666 1330 712 748 1523 1277 1458 3439 737 999 656 650 537 5399 718 598 2277 Spaces Moved 9772 | 40 362 411 610 393 371 722 566 742 1551 379 546 305 336 311 369 409 313 1036 Core 3 | 3 . . . . . . . . . . . . . . . . . . Treads 9769 | 37 362 411 610 393 371 722 566 742 1551 379 546 305 336 311 369 409 313 1036 Legs . | . . . . . . . . . . . . . . . . . . . Wheels . | . . . . . . . . . . . . . . . . . . . Hover . | . . . . . . . . . . . . . . . . . . . Flight . | . . . . . . . . . . . . . . . . . . . Fastest Speed 50 | 50 160 160 160 160 155 175 180 160 180 160 160 160 160 160 160 160 160 160 Average Speed 168 | 151 160 160 160 160 165 175 180 176 188 162 160 160 160 160 160 160 160 163 Slowest Speed 190 | 160 160 160 160 180 180 180 180 180 190 187 160 160 180 160 160 160 180 180 Overloaded Moves . | . . . . . . . . . . . . . . . . . . . Propulsion Burnouts . | . . . . . . . . . . . . . . . . . . . Robots Hopped . | . . . . . . . . . . . . . . . . . . . Cave-ins Triggered . | . . . . . . . . . . . . . . . . . . . Teleports 1 | . . . . . . . . . . . . . . . 1 . . . Exploration Rate (%) 46 | 4 60 86 39 92 33 30 80 18 75 86 16 8 53 50 62 59 6 22 Regions Visited 18 Branch Regions 9 Pre-discovered Areas 5 | . . . . . . . . . . . . . 1 1 3 . . . Known Exits Taken 3 | . 1 . 1 . . . . . . 1 . . . . . . . . Unknown Exits Taken 15 | 1 . 1 . 1 1 1 1 1 1 . 1 1 1 1 1 1 1 . Scrap Searched 5 | . . 1 . 1 . . . . . . . . 1 1 . 1 . . Spaces Dug 14 | . . . . . . . . . 3 1 . . . . . 2 . 8 Terrain Destroyed 564 | . 19 . 37 64 . 63 23 8 26 10 44 17 86 55 . 54 . 58 Melee 14 | . . . . . . . . . 3 1 . . . . . 2 . 8 Projectile 313 | . . . . . . 1 1 8 23 9 44 17 86 55 . 52 . 17 AOE 237 | . 19 . 37 64 . 62 22 . . . . . . . . . . 33 Terrain Rammed . | . . . . . . . . . . . . . . . . . . . Walls Destroyed . | . . . . . . . . . . . . . . . . . . . Machines Disabled . | . . . . . . . . . . . . . . . . . . . Actions | -11 -10 -10 -9 -9 -8 -7 -7 -6 -6 -6 -5 -4 -4 -4 -4 -3 -3 -2 --------- Run | Scr Mat Min Mat Min Mat Fac Sto Fac Ext Cet Fac Fac Upp Upp Zhi Pro Res Res Total 16622 | 49 429 421 845 438 461 917 753 836 1918 467 621 456 387 326 5158 436 383 1321 Wait 5458 | . 22 8 110 11 21 88 57 29 74 30 12 117 10 1 4755 5 45 63 Move 9754 | 39 361 410 609 392 370 721 565 741 1550 378 545 304 335 310 368 408 312 1036 Hop . | . . . . . . . . . . . . . . . . . . . Pick Up 142 | 4 9 1 19 1 11 14 11 8 16 9 7 9 3 . 4 1 7 8 Fast Attach 68 | 6 3 . 2 1 . 5 14 4 2 5 3 1 3 1 3 . . 15 Attach 50 | . . . 6 . 2 6 1 4 7 . 2 3 . 1 2 1 2 13 Detach 13 | . 1 . 1 . . 3 . . 2 1 . . . 2 3 . . . Swap 200 | . 7 . 18 7 14 20 22 11 25 6 17 5 6 1 3 7 4 27 Drop 198 | . 7 2 17 2 16 22 30 13 21 20 12 9 6 . . . 3 18 Fire 565 | . 19 . 63 24 27 38 52 26 66 16 23 8 24 10 18 12 10 129 Melee 29 | . . . . . . . . . 14 2 . . . . . 2 . 11 Ram 1 | . . . . . . . . . . . . . . . . . . 1 Kick . | . . . . . . . . . . . . . . . . . . . Crush 2 | . . . . . . . . . 2 . . . . . . . . . Escape Stasis 10 | . . . . . . . . . 10 . . . . . . . . . Rewire 132 | . . . . . . . 1 . 129 . . . . . 2 . . . Trap . | . . . . . . . . . . . . . . . . . . . Miscellaneous . | . . . . . . . . . . . . . . . . . . . Route ------- -11/Scrapyard -10/Materials (discovered 3 exits: *Mat / *Min x2) -10/Mines (discovered 2 exits: *Mat / [*Exi]) -9/Materials (discovered 2 exits: *Mat / *Min) -9/Mines -8/Materials -7/Factory (discovered 2 exits: *Fac / *Sto) -7/Storage -6/Factory (discovered 5 exits: Fac x4 / *Ext) -6/Extension (discovered 2 exits: *Fac / *Cet) -6/Cetus (discovered 2 exits: *Fac / [*Arc]) -5/Factory -4/Factory -4/Upper Caves -4/Upper Caves -4/Zhirov -3/Proximity Caves -3/Research -2/Research History --------- Turn | Location | Event 46 | -11/Scrapyard | Discovered new exit (range 15) 74 | -11/Scrapyard | Entered Materials 315 | -10/Materials | Build established: Mutant 439 | -10/Materials | Discovered new exit (range 8) 450 | -10/Materials | Identified exit to Mines 755 | -10/Materials | Entered Mines 762 | -10/Mines | Received a Mining Laser from a helpful Derelict 782 | -10/Mines | Met a Derelict bent on vengeance 827 | -10/Mines | Deemed a non-threat by the Exiles lab entrance 827 | -10/Mines | Discovered new exit (range 5) 1073 | -10/Mines | Found the Drone Emporium 1088 | -10/Mines | Found Prototype Device 1156 | -10/Mines | Learned Materials machine intel 1366 | -10/Mines | Assisted by bots powering up and referring to "LRC-V3" 1401 | -10/Mines | Discovered new exit (range 10) 1421 | -10/Mines | Entered Materials 1421 | -9/Materials | Accompanied by 3 allies 1421 | -9/Materials | Evolved 2 slots: Propulsion x1, Utility x1 1422 | -9/Materials | Loaded intel: 49 machine locations 1674 | -9/Materials | Identified exit to Mines 2474 | -9/Materials | Discovered new exit (range 11) 2533 | -9/Materials | Repaired Imp. Terrain Scanner 2585 | -9/Materials | Repaired Imp. Assault Rifle 2751 | -9/Materials | Entered Mines 3009 | -9/Mines | Learned Materials stockpile data 3150 | -9/Mines | Discovered new exit (range 9) 3463 | -9/Mines | Entered Materials 3463 | -8/Materials | Evolved 2 slots: Utility x2 4154 | -8/Materials | Discovered new exit (range 16) 4211 | -8/Materials | Entered Factory 4211 | -7/Factory | Evolved 2 slots: Power x1, Weapon x1 4503 | -7/Factory | Build established: Hauler-Gunner 4675 | -7/Factory | Discovered new exit (range 16) 4933 | -7/Factory | Identified Decoy Drone Bay 4968 | -7/Factory | Discovered new exit (range 80) 5143 | -7/Factory | Found Prototype Launcher 5143 | -7/Factory | Identified Rocket Array 5482 | -7/Factory | Build established: Hauler-Skirmisher 5734 | -7/Factory | Entered Storage 6506 | -7/Storage | Assisted by bots powering up and referring to "LRC-V3" 6600 | -7/Storage | Discovered new exit (range 8) 6795 | -7/Storage | Build established: Commander-Mutant 7011 | -7/Storage | Entered Factory 7011 | -6/Factory | Accompanied by 6 allies 7011 | -6/Factory | Evolved 2 slots: Propulsion x1, Utility x1 8040 | -6/Factory | Build established: Hauler-Skirmisher 8111 | -6/Factory | Identified exit to Factory 8462 | -6/Factory | Discovered new exit (range 6) 8469 | -6/Factory | Entered Extension 8646 | -6/Extension | Rescued a captive Derelict 8718 | -6/Extension | Rescued a captive Derelict 9397 | -6/Extension | Rescued a captive Derelict 9405 | -6/Extension | Rescued a captive Derelict 9531 | -6/Extension | Spotted B-75 Beast 9745 | -6/Extension | Build established: Hauler-Gunner 10580 | -6/Extension | Destroyed B-75 Beast 10589 | -6/Extension | Spotted B-75 Beast 10857 | -6/Extension | Destroyed B-75 Beast 11239 | -6/Extension | Repaired Proton Missile Launcher 11278 | -6/Extension | Build established: Hauler-Tank 11751 | -6/Extension | Rescued A7 11849 | -6/Extension | Discovered exit to Factory (range 10) 11851 | -6/Extension | Discovered new exit (range 6) 11908 | -6/Extension | Entered Cetus 11908 | -6/Cetus | Accompanied by 7 allies (A7) 11913 | -6/Cetus | Acquired a Cetus Manufacturing Module code from A7 11948 | -6/Cetus | Spotted Cetus Guard 11948 | -6/Cetus | Spotted Cetus Guard 11950 | -6/Cetus | Spotted Cetus Guard 11950 | -6/Cetus | Spotted Cetus Guard 11951 | -6/Cetus | Allies destroyed Cetus Guard 11952 | -6/Cetus | Allies destroyed Cetus Guard 11961 | -6/Cetus | Allies destroyed Cetus Guard 11965 | -6/Cetus | Destroyed Cetus Guard 12121 | -6/Cetus | Started Cetus Manufacturing Module 12146 | -6/Cetus | Manufactured an Enhanced Grunt 12171 | -6/Cetus | Manufactured an Enhanced Grunt 12196 | -6/Cetus | Manufactured an Enhanced Grunt 12221 | -6/Cetus | Manufactured an Enhanced Grunt 12246 | -6/Cetus | Manufactured an Enhanced Grunt 12296 | -6/Cetus | Cetus Manufacturing Module disabled 12375 | -6/Cetus | Escorted A7 to Cetus Mainframe 12486 | -6/Cetus | Discovered new exit (range 15) 12538 | -6/Cetus | Spotted Cetus Guard 12538 | -6/Cetus | Spotted Cetus Guard 12540 | -6/Cetus | Spotted Cetus Guard 12544 | -6/Cetus | Allies destroyed Cetus Guard 12548 | -6/Cetus | Spotted Cetus Guard 12551 | -6/Cetus | Allies destroyed Cetus Guard 12554 | -6/Cetus | Discovered exit to Factory (range 15) 12558 | -6/Cetus | Allies destroyed Cetus Guard 12560 | -6/Cetus | Destroyed Cetus Guard 12567 | -6/Cetus | Met Revision 17 12642 | -6/Cetus | Build established: Scavenger-Tank 12645 | -6/Cetus | Entered Factory 12645 | -5/Factory | Accompanied by 6 allies (A7) 12645 | -5/Factory | Evolved 2 slots: Utility x2 12650 | -5/Factory | Received a hacking code to weaken MAIN.C 12945 | -5/Factory | First assault squad dispatched 13093 | -5/Factory | Build established: Scavenger-Skirmisher 13439 | -5/Factory | Discovered new exit (range 19) 13611 | -5/Factory | Found Prototype Device 13611 | -5/Factory | Identified Exp. Thermal Shield 13644 | -5/Factory | Entered another Factory area 13644 | -4/Factory | Accompanied by 2 allies 13644 | -4/Factory | Evolved 2 slots: Utility x1, Weapon x1 13822 | -4/Factory | Spotted B-86 Titan 13918 | -4/Factory | Build established: Scavenger-Tank 14032 | -4/Factory | Discovered new exit (range 15) 14300 | -4/Factory | Entered Upper Caves 14410 | -4/Upper Caves | Learned location of Quarantine (-2) 14583 | -4/Upper Caves | Attracted the attention of an 0b10 checkpoint 14668 | -4/Upper Caves | Learned 4 Research zone layouts 14805 | -4/Upper Caves | Encountered a Warlord checkpoint 14929 | -4/Upper Caves | Discovered new exit (range 11) 14943 | -4/Upper Caves | Spotted B-86 Titan 14950 | -4/Upper Caves | Entered another Upper Caves area 15238 | -4/Upper Caves | Learned location of Testing (-3) 15455 | -4/Upper Caves | Discovered new exit (range 15) 15487 | -4/Upper Caves | Entered Zhirov 15487 | -4/Zhirov | Discovered new exit (range 3) 15548 | -4/Zhirov | Learned location of Command (-1) 15616 | -4/Zhirov | Found Alien Artifact 15616 | -4/Zhirov | Identified Integrated Reactor 15616 | -4/Zhirov | Installed Integrated Reactor, increased core energy generation (+10) 15714 | -4/Zhirov | Found Alien Artifact 15717 | -4/Zhirov | Identified Transdimensional Reconstructor 15717 | -4/Zhirov | Warped through subspace 15948 | -4/Zhirov | Build established: Scavenger-Skirmisher 20886 | -4/Zhirov | Entered Proximity Caves 21274 | -3/Proximity Caves | Spotted B-86 Titan 21426 | -3/Proximity Caves | Build established: Scavenger-Tank 21559 | -3/Proximity Caves | Discovered new exit (range 12) 21604 | -3/Proximity Caves | Entered Research 21604 | -3/Research | Evolved 2 slots: Utility x2 22119 | -3/Research | Discovered new exit (range 11) 22202 | -3/Research | Entered another Research area 22202 | -2/Research | Evolved 2 slots: Utility x2 23034 | -2/Research | System corruption reached 10% 23078 | -2/Research | Destroyed 7 combat bots 23545 | -2/Research | Spotted B-90 Cyclops 24193 | -2/Research | Spotted B-90 Cyclops 24274 | -2/Research | System corruption reached 30% 24280 | -2/Research | Destroyed B-90 Cyclops 24290 | -2/Research | Build established: Hauler-Gunner 24333 | -2/Research | Lost 17 parts (2p1n7u7w) 24456 | -2/Research | Core integrity fell below 50% 24479 | -2/Research | Self-destructed Last Messages --------------- System corrupted by crushing effect (+2). System corrupted: Mni. Assault Cannon targeting data glitched. System corrupted: Mni. Assault Cannon targeting data glitched. System corrupted: Mni. Assault Cannon targeting data glitched. Hcp. Storage Unit destroyed. System corrupted by crushing effect (+1). System corrupted: Mni. Assault Cannon targeting data glitched. ALERT: Rogue bot located, Programmers report to Research Zone 9Q. System corrupted: Mni. Assault Cannon jammed. Mni. Assault Cannon destroyed. System corrupted by crushing effect (+2). [Achievement: 10k Club] [Achievement: 20k Club] [Achievement: This Is Interesting...] [Achievement: Achiever] Map ----- +----------------------------------------------------+ | # # ? ####?#? ??#??? | | """ # # ##### ??##?# ?????? | | """ # / # ##### """ ###??# ?? ? ? | | """ # # ##### """ ###### ? ? "? | | # # ##### """ ####???? "?" | | # # ##### # # ?? """ | | """ # # + ###### ? "?" | | =!!""" # # ##### ######? ? "?" | | =%*"" # # ################### ? ?""? | | =!|![[ =# ! # ###################? ? "" | | !=%[! # % # ####### ### ? ?? | | #+#############+###### ####### # / ? | | ^ % + """ ### ??"??? | | #####+####### """ #####?#??#? | | # ### """ ##?###?##?# | | !# ### #########?? | | ^ # [ ### = | #######?#?? | | """ # ### #?#####?### | | """ #################+########?###??# | | """ ### ? | | !! """ ### | | !! """ ### | | !! """ ### k ? | | ###### """ ### ###/#############+######?? | | ###### ### # bg ###? ?? ? ? ? | | ###### ### #@% m ###? ??? ?? | | ### ### # b """" ##? ?? ? ?? | | ### """ ### # ""S"" ###?? ???#?? | | ### """ ### # % " "" ### ??? ??? ?? | | ### """ ### # [* ### ????? #?? | | ###### """ ### # ! ##?? ? ??? ? | | ###### """ #?# # |#?? ? ?#??? | | ###### """ ### ### #######?#??#????##???? | | ###### """ ######?##?#?#?###?###????? | | ###### ####??#?#?????#?#????????? | | ###### ##??????#?##??#??????????? | | # #???????????#?#??????????? | | # ####"###???????#????????????????? | | " # ### ##???????????#??#???????????? | | " ## #####????????????????????????? | | T = " ##?#?##???????????????????????? | | " # ###?#?##????????????????????????? | | " # "###??##????????????????????????? | | = ! ! #?####????????????????????????? | | # = #??#####??????????????????????? | | ### | ####?###?##?????????????????????? | | """ ######?#?##?????????????????????? | | """ #?###?????#?????????????????????? | | """ ######?#?##?????????????????????? | | # = =" ######?##???????????????????????? | +----------------------------------------------------+ Best States ------------- Heat Dissipation 118 Energy Generation 55 Energy Capacity 1400 Matter Stores 300 Matter Capacity 300 Sight Range 16 Robot Scan Range 13 Terrain Scan Range 20 Terrain Scan Density 210 Armor Coverage 600 Resistance: KI 30 Utility Shielding 90 Evasion (%) 40 Targeting Accuracy 8 Target Analysis 8 Core Analysis 10 Recoil Reduction 4 Kinecelleration 40 Defensive Hacking 10 Item Schematics ----------------- Hcp. Storage Unit | -10/Materials | Hacked Assault Drone Bay | -4/Zhirov | Free Exp. Heat Sink | -4/Zhirov | Free Exp. Optical Array | -4/Zhirov | Free Imp. Arc Thrower | -4/Zhirov | Free Robot Schematics ------------------ None Fabricated ------------ Nothing Alien Tech Used ----------------- Integrated Reactor Transdimensional Reconstructor Achievements -------------- 10k Club 20k Club Achiever Alien Tech Can't Touch This Dangerous Findings Main Advantage Ooh, Shiny! Part-time Excavator Prison Break Project G-00 Prolific Hacker Release The Drones! Respectable Loadout Revising The Future Rockin' Loadout Subspace Traveler System Compromised Tank This Is Interesting... What Is This Thing? Z1$+NX3F=JRE3_ZNQR Challenges ------------ None Game ------ Seed DecoyTrackerClaws Manual? 0 Play Time 03:37:47 Cumulative 18.1 hours Start 2021.02.21 @ 18:21:17 End 2021.02.22 @ 13:08:59 Sessions 19 Manual Loads 0 Difficulty Rogue Special Mode None Game No. 12 Rogue 12 Adventurer 0 Explorer 0 Win Type - Total 0 Types 0/0/0/0/0/0/0/0/0 Lore% 31 Gallery% 21 Achievement% 25 Wizard Run 0 Options --------- ASCII 0 Keyboard 1 Movement Vi Keybinds 0 Fullscreen 2 Font 12/Smallcaps Map View 60x54 Tactical HUD 0 Map Filters NONE Filters NONE Steam 0 RUN: ac19de2c-8593-449e-a8ab-a4412d941be7